bitfinex/quotes_BTCUSD_20260103
["timestamp","ask_amount","ask_price","bid_price","bid_amount"]
[1767480922925,0.01105265,90476.0,90467.0,0.01105375]
[1767480923171,0.01105277,90475.0,90466.0,0.01105387]
[1767480923588,0.01105277,90475.0,90467.0,0.01105375]
[1767480923793,0.01105277,90475.0,90466.0,0.01105387]
[1767480924127,0.01105277,90475.0,90468.0,0.00048417]
[1767480924495,0.01105289,90474.0,90468.0,0.00048417]
[1767480924848,0.01105277,90475.0,90468.0,0.00048417]
[1767480925998,0.01105289,90474.0,90468.0,0.00048417]
[1767480926379,0.01105277,90475.0,90468.0,0.00048417]
[1767480926726,0.01105277,90475.0,90468.0,0.00038416]
[1767480927090,0.05682114,90474.0,90468.0,0.00038416]
[1767480927290,0.04576825,90472.0,90468.0,0.00038416]
[1767480927491,0.04576825,90470.0,90468.0,0.00038416]
[1767480927718,0.04576825,90470.0,90468.0,0.00018413]
[1767480928959,0.04576825,90472.0,90470.0,0.000999]
[1767480929622,0.04576825,90472.0,90468.0,0.00018413]
[1767480931273,0.03476925,90472.0,90468.0,0.01123776]
[1767480931548,0.03476925,90472.0,90468.0,0.00018413]
[1767480931747,0.03476925,90472.0,90468.0,0.01123776]
[1767480932546,0.03476925,90472.0,90469.0,0.01105351]
[1767480932744,0.03476925,90472.0,90468.0,0.01123776]
[1767480932952,0.03476925,90472.0,90469.0,0.01105351]
[1767480933471,0.03476925,90472.0,90468.0,0.01103773]
[1767480934118,0.03476925,90472.0,90468.0,0.0108377]
[1767480934543,0.03476925,90472.0,90469.0,0.01105351]
[1767480934969,0.03476925,90472.0,90468.0,0.0108377]
[1767480935473,0.03476925,90472.0,90468.0,0.01105363]
[1767480936039,0.03476925,90472.0,90467.0,0.01105375]
[1767480936243,0.03476925,90472.0,90468.0,0.01105363]
[1767480936866,0.05730675,90477.0,90468.0,0.01105363]
[1767480937479,0.04625422,90475.0,90467.0,0.01065169]
[1767480938352,0.04625422,90475.0,90468.0,0.0108536]
[1767480939012,0.04625422,90475.0,90468.0,0.01105363]
[1767480939606,0.04625422,90475.0,90468.0,0.0108536]
[1767480939943,0.04625422,90475.0,90467.0,0.01065169]
[1767480940412,0.04625422,90475.0,90468.0,0.01105363]
[1767480940750,0.04625422,90475.0,90468.0,0.0108536]
[1767480941136,0.16990933,90472.0,90467.0,0.01065169]
[1767480941351,0.16990933,90472.0,90468.0,0.01105363]
[1767480941492,0.04625422,90471.0,90468.0,0.01105363]
[1767480941692,0.04625422,90471.0,90467.0,0.01065169]
[1767480942291,0.12365511,90472.0,90467.0,0.01065169]
[1767480942672,0.1698404,90472.0,90466.0,0.01105387]
[1767480943032,0.04625422,90471.0,90467.0,0.01105375]
[1767480943233,0.04625422,90471.0,90466.0,0.01105387]
[1767480944166,0.04625422,90471.0,90467.0,0.01105375]
[1767480944734,0.04625422,90471.0,90466.0,0.01105387]
[1767480946021,0.04625422,90471.0,90465.0,0.01105399]
[1767480946245,0.04625422,90471.0,90466.0,0.01105387]
[1767480946594,0.12358618,90472.0,90466.0,0.01105387]
[1767480947299,0.12358618,90472.0,90465.0,0.01105399]
[1767480947463,0.12358618,90472.0,90464.0,0.01105412]
[1767480947647,0.12358618,90472.0,90466.0,0.01105387]
[1767480947848,0.12358618,90472.0,90465.0,0.01105399]
[1767480948270,0.000999,90465.0,90462.0,0.06632577]
[1767480948595,0.12358618,90472.0,90465.0,0.01105399]
[1767480948800,0.12358618,90472.0,90464.0,0.01105412]
[1767480949131,0.12358618,90472.0,90465.0,0.01105399]
[1767480949297,0.12358618,90472.0,90464.0,0.01105412]
[1767480949476,0.04625422,90471.0,90462.0,0.06632577]
[1767480949966,0.04625422,90471.0,90463.0,0.0552707]
[1767480950094,0.04625422,90471.0,90465.0,0.01105399]
[1767480950296,0.04625422,90471.0,90467.0,0.01105375]
[1767480950599,0.04625422,90475.0,90467.0,0.01105375]
[1767480950834,0.16990933,90471.0,90467.0,0.01105375]
[1767480951238,0.12365511,90471.0,90468.0,0.01105363]
[1767480951773,0.12365511,90471.0,90467.0,0.05822182]
[1767480952269,0.12365511,90471.0,90467.0,0.04716807]
[1767480952433,0.12365511,90471.0,90467.0,0.05822182]
[1767480954332,0.12365511,90471.0,90468.0,0.01105363]
[1767480954531,0.12358617,90471.0,90468.0,0.04716807]
[1767480954960,0.12358617,90471.0,90468.0,0.0582217]
[1767480955137,0.12358617,90471.0,90468.0,0.04716807]
[1767480955538,0.12358617,90471.0,90468.0,0.01105363]
[1767480955758,0.12358617,90471.0,90467.0,0.01105375]
[1767480957371,0.12358617,90471.0,90466.0,0.01105387]
[1767480958353,0.04625422,90470.0,90466.0,0.01105387]
[1767480958554,0.04625422,90470.0,90467.0,0.01105375]
[1767480958757,0.12358617,90471.0,90467.0,0.01105375]
[1767480959437,0.00048415,90474.0,90467.0,0.05802179]
[1767480959647,0.12365511,90472.0,90468.0,0.01105363]
[1767480961072,0.12365511,90472.0,90467.0,0.01085372]
[1767480961651,0.000999,90467.0,90465.0,0.01105399]
[1767480961819,0.12365511,90472.0,90466.0,0.01105387]
[1767480962016,0.12365511,90472.0,90464.0,0.01085409]
[1767480962220,0.01,90466.0,90463.0,0.01105424]
[1767480962647,0.01,90466.0,90463.0,0.06632489]
[1767480963237,0.12365511,90472.0,90465.0,0.01085396]
[1767480963407,0.000999,90465.0,90463.0,0.01105424]
[1767480964107,0.12365511,90472.0,90465.0,0.01095398]
[1767480964423,0.12365511,90472.0,90464.0,0.01095411]
[1767480964740,0.12365511,90472.0,90465.0,0.01105399]
[1767480964966,0.12365511,90472.0,90466.0,0.01105387]
[1767480965120,0.000999,90466.0,90464.0,0.01095411]
[1767480965320,0.000999,90466.0,90464.0,0.0108541]
[1767480965525,0.12365511,90472.0,90465.0,0.01105399]
[1767480965940,0.13470825,90472.0,90464.0,0.0108541]
[1767480966356,0.13470825,90472.0,90464.0,0.010652]
[1767480967312,0.13470825,90472.0,90464.0,0.01045197]
[1767480967642,0.12365511,90472.0,90465.0,0.01105399]
[1767480967844,0.12365511,90472.0,90464.0,0.01045197]
[1767480968046,0.13470825,90472.0,90464.0,0.01045197]
[1767480968247,0.18043669,90472.0,90464.0,0.01025194]
[1767480968576,0.16938355,90472.0,90464.0,0.06552214]
[1767480969163,0.16938355,90472.0,90465.0,0.01105399]
[1767480969532,0.16938355,90472.0,90466.0,0.01105387]
[1767480969708,0.16938355,90472.0,90465.0,0.01105399]
[1767480969861,0.16938355,90472.0,90466.0,0.01105387]
[1767480970063,0.16938355,90472.0,90465.0,0.01105399]
[1767480970253,0.16938355,90472.0,90466.0,0.01105387]
[1767480970456,0.000999,90466.0,90464.0,0.01025194]
[1767480970670,0.16938355,90472.0,90466.0,0.01105387]
[1767480971051,0.16938355,90472.0,90464.0,0.01025194]
[1767480971251,0.1677445,90472.0,90465.0,0.01105399]
[1767480971506,0.1677445,90472.0,90464.0,0.01025194]
[1767480971807,0.16618732,90472.0,90466.0,0.01105387]
[1767480972346,0.16618732,90472.0,90465.0,0.01105399]
[1767480972881,0.16618732,90472.0,90463.0,0.01105424]
[1767480973083,0.17724046,90472.0,90464.0,0.01105412]
[1767480973283,0.16618732,90472.0,90464.0,0.01105412]
[1767480973490,0.16618732,90472.0,90465.0,0.01105399]
[1767480973835,0.17724046,90472.0,90464.0,0.01105412]
[1767480974044,0.17724046,90472.0,90463.0,0.01105424]
[1767480974245,0.16618732,90472.0,90465.0,0.01105399]
[1767480974442,0.17724046,90472.0,90464.0,0.01105412]
[1767480974606,0.16618732,90472.0,90463.0,0.06632485]
[1767480974801,0.16618732,90472.0,90465.0,0.01105399]
[1767480975000,0.16618732,90472.0,90466.0,0.01105387]
[1767480975223,0.04572844,90471.0,90466.0,0.01105387]
[1767480975612,0.04572844,90471.0,90464.0,0.02737815]
[1767480975815,0.04572844,90471.0,90442.0,0.08767088]
[1767480975816,0.04572844,90471.0,90449.0,0.13467605]
[1767480976865,0.1189017,90472.0,90465.0,0.01105399]
[1767480977409,0.1189017,90472.0,90464.0,0.01105412]
[1767480977829,0.12995484,90472.0,90465.0,0.01105399]
[1767480978448,0.12995484,90472.0,90464.0,0.01105412]
[1767480978658,0.1189017,90472.0,90465.0,0.01105399]
[1767480979055,0.12995484,90472.0,90463.0,0.066325]
[1767480979215,0.12995484,90472.0,90464.0,0.01105412]
[1767480979409,0.1189017,90472.0,90465.0,0.01105399]
[1767480980693,0.12995484,90472.0,90465.0,0.01105399]
[1767480980916,0.12995484,90472.0,90463.0,0.066325]
[1767480981044,0.1189017,90472.0,90463.0,0.00555125]
[1767480981398,0.12995484,90472.0,90463.0,0.00544924]
[1767480981576,0.1189017,90472.0,90465.0,0.01095396]
[1767480981755,0.12995484,90472.0,90464.0,0.01105412]
[1767480981961,0.01105326,90471.0,90463.0,0.05246385]
[1767480982162,0.01105326,90471.0,90464.0,0.01105412]
[1767480982360,0.12995484,90472.0,90464.0,0.01105412]
[1767480982566,0.12995484,90472.0,90463.0,0.05246385]
[1767480983173,0.12995484,90472.0,90464.0,0.05816874]
[1767480985474,0.02995484,90472.0,90467.0,0.04711462]
[1767480985886,0.06631414,90479.0,90472.0,0.01]
[1767480986100,0.05678097,90477.0,90472.0,1.13e-05]
[1767480986276,0.05678097,90477.0,90469.0,0.01105351]
[1767480986478,0.01105277,90475.0,90466.0,0.01105387]
[1767480986714,0.01098455,90469.0,90466.0,0.01105387]
[1767480986959,0.04572844,90469.0,90460.0,0.31986478]
[1767480987173,0.12365511,90471.0,90461.0,0.05527243]
[1767480987381,0.12365511,90471.0,90464.0,0.05816874]
[1767480988161,0.01105314,90472.0,90464.0,0.05816874]
[1767480988625,0.06631739,90474.0,90466.0,0.01105387]
[1767480988626,0.01105289,90474.0,90466.0,0.01105387]
[1767480988955,0.01105302,90473.0,90465.0,0.01105399]
[1767480989129,0.01105302,90473.0,90466.0,0.01105387]
[1767480990078,0.01105302,90473.0,90465.0,0.01105399]
[1767480990322,0.01105289,90474.0,90466.0,0.01105387]
[1767480990497,0.01105302,90473.0,90465.0,0.01105399]
[1767480990697,0.01105302,90473.0,90466.0,0.01105387]
[1767480991027,0.01105289,90474.0,90466.0,0.01105387]
[1767480991373,0.01105277,90475.0,90467.0,0.01105375]
[1767480993008,0.01105277,90475.0,90468.0,0.01105363]
[1767480994428,0.01105277,90475.0,90467.0,0.01105375]
[1767480994838,0.01105277,90475.0,90468.0,0.01105363]
[1767480995051,0.01105277,90475.0,90467.0,0.01105375]
[1767480995706,0.01105277,90475.0,90468.0,0.01105363]
[1767480996158,0.01105289,90474.0,90467.0,0.05702153]
[1767480996326,0.01105277,90475.0,90468.0,0.01105363]
[1767480996728,0.0663164,90476.0,90468.0,0.01105363]
[1767480996930,0.01105277,90475.0,90467.0,0.05702153]
[1767480997326,0.01105289,90474.0,90467.0,0.04596778]
[1767480997569,0.01105277,90475.0,90467.0,0.05702153]
[1767480999795,0.01105289,90474.0,90467.0,0.05202153]
[1767481000398,0.01105277,90475.0,90468.0,0.04596778]
[1767481000565,0.0663164,90476.0,90468.0,0.05702141]
[1767481001476,0.02212,90478.0,90468.0,0.05702141]
[1767481001477,0.02212,90478.0,90469.0,0.0109535]
[1767481001661,0.03317241,90478.0,90469.0,0.01085348]
[1767481002086,0.03317241,90478.0,90471.0,0.01105326]
[1767481002406,0.01105253,90477.0,90470.0,0.01105338]
[1767481002604,0.03317241,90478.0,90471.0,0.01105326]
[1767481002852,0.03317241,90478.0,90471.0,0.01085323]
[1767481003248,0.03317241,90478.0,90470.0,0.01105338]
[1767481004261,0.03317241,90478.0,90471.0,0.01085323]
[1767481004662,0.03317241,90478.0,90470.0,0.01105338]
[1767481006770,0.02212,90478.0,90471.0,0.01105326]
[1767481006971,0.01105253,90477.0,90470.0,0.01105338]
[1767481007181,0.01105253,90477.0,90469.0,0.01085348]
[1767481007338,0.03317241,90478.0,90470.0,0.01105338]
[1767481007543,0.05526266,90477.0,90468.0,0.05702141]
[1767481007871,0.03317241,90478.0,90469.0,0.01105351]
[1767481008261,0.01105253,90477.0,90469.0,0.01105351]
[1767481008780,0.03317241,90478.0,90469.0,0.01105351]
[1767481009069,0.01105253,90477.0,90469.0,0.01105351]
[1767481009979,0.01105253,90477.0,90470.0,0.01105338]
[1767481010324,0.01105253,90477.0,90469.0,0.01105351]
[1767481011027,0.01105253,90477.0,90469.0,0.05702129]
[1767481011422,0.03317241,90478.0,90470.0,0.05702116]
[1767481011622,0.02212,90478.0,90472.0,0.01105314]
[1767481012340,0.07736568,90482.0,90472.0,0.01105314]
[1767481012341,0.01105155,90485.0,90478.0,0.00105351]
[1767481012635,0.02212,90482.0,90476.0,0.05702043]
[1767481012840,0.03317192,90482.0,90476.0,0.04596778]
[1767481012990,0.02212,90482.0,90475.0,0.01105277]
[1767481013185,0.02212,90482.0,90476.0,0.01105265]
[1767481013433,0.02202,90482.0,90476.0,0.01105265]
[1767481013801,0.02202,90482.0,90475.0,0.01105277]
[1767481014001,0.02202,90482.0,90476.0,0.01105265]
[1767481014537,0.021021,90482.0,90477.0,0.01105253]
[1767481014682,0.021021,90482.0,90478.0,0.01105241]
[1767481015002,0.021021,90482.0,90479.0,0.01105228]
[1767481015605,0.021021,90482.0,90478.0,0.01105241]
[1767481015824,0.021021,90482.0,90479.0,0.01105228]
[1767481017432,4.745e-05,90485.0,90481.0,0.01105204]
[1767481018350,4.745e-05,90485.0,90480.0,0.01105216]
[1767481018551,4.745e-05,90485.0,90481.0,0.01105204]
[1767481018968,4.745e-05,90485.0,90482.0,0.01105192]
[1767481019151,4.745e-05,90485.0,90482.0,0.01085189]
[1767481019942,4.745e-05,90485.0,90482.0,0.01077915]
[1767481020300,4.745e-05,90485.0,90483.0,0.05525857]
[1767481020947,0.02212,90488.0,90485.0,0.01105155]
[1767481022807,0.02212,90488.0,90485.0,0.06630896]
[1767481022963,0.02212,90488.0,90486.0,0.05525662]
[1767481023961,0.02212,90488.0,90485.0,0.06630896]
[1767481024183,0.04981823,90487.0,90485.0,0.01630896]
[1767481024381,0.03326384,90487.0,90481.0,0.01105204]
[1767481024781,0.03326384,90487.0,90485.0,0.01105155]
[1767481025350,0.03326384,90487.0,90485.0,0.06630896]
[1767481026062,0.01104996,90498.0,90491.0,0.01105082]
[1767481026417,0.01204982,90491.0,90490.0,0.01105094]
[1767481026617,0.01105082,90491.0,90489.0,0.06630589]
[1767481026961,0.01105082,90491.0,90489.0,0.01105106]
[1767481027273,0.01104996,90498.0,90490.0,0.01105094]
[1767481027475,0.01105009,90497.0,90490.0,0.01005194]
[1767481028116,0.01105021,90496.0,90488.0,0.01105118]
[1767481029348,0.01105021,90496.0,90489.0,0.01105106]
[1767481029930,0.01105021,90496.0,90490.0,0.0483425]
[1767481030125,0.01105033,90495.0,90490.0,0.0483425]
[1767481030510,0.01105021,90496.0,90490.0,0.0483425]
[1767481030718,0.01105009,90497.0,90490.0,0.05939344]
[1767481031112,0.01105021,90496.0,90490.0,0.0483425]
[1767481031717,0.01105009,90497.0,90490.0,0.05939344]
[1767481032122,0.01105021,90496.0,90490.0,0.0483425]
[1767481033030,0.01105009,90497.0,90490.0,0.05939344]
[1767481033516,0.01105021,90496.0,90490.0,0.0483425]
[1767481034419,0.01105009,90497.0,90490.0,0.05939344]
[1767481034982,0.01105021,90496.0,90490.0,0.0483425]
[1767481035209,0.01105009,90497.0,90490.0,0.05939344]
[1767481036683,0.03488299,90497.0,90490.0,0.05939344]
[1767481036896,0.0238329,90497.0,90492.0,0.0483425]
[1767481037514,0.01104984,90499.0,90492.0,0.0483425]
[1767481037919,0.0238329,90500.0,90492.0,0.0593932]
[1767481038121,0.0238329,90501.0,90499.0,0.00079897]
[1767481038319,0.03316947,90502.0,90496.0,0.05939271]
[1767481038320,0.0459529,90502.0,90496.0,0.05939271]
[1767481039699,0.0459529,90502.0,90496.0,0.01105021]
[1767481040500,0.0459529,90502.0,90496.0,0.05910607]
[1767481040667,0.0459529,90502.0,90498.0,0.0483425]
[1767481040842,0.05700237,90502.0,90498.0,0.0483425]
[1767481041168,0.05700579,90502.0,90498.0,0.0483425]
[1767481041370,0.04595632,90502.0,90498.0,0.0483425]
[1767481041569,0.02212,90502.0,90498.0,0.0483425]
[1767481042220,0.02212,90502.0,90498.0,0.05939246]
[1767481042595,0.01333,90503.0,90501.0,0.0483425]
[1767481042814,0.01333,90503.0,90502.0,0.000799]
[1767481043094,0.01333,90503.0,90500.0,0.01104972]
[1767481044474,0.01333,90503.0,90499.0,0.01104984]
[1767481044680,0.01333,90503.0,90500.0,0.01104972]
[1767481045058,0.01333,90503.0,90499.0,0.01104984]
[1767481045269,0.012531,90503.0,90500.0,0.01104972]
[1767481045465,0.012531,90503.0,90499.0,0.01104984]
[1767481046404,0.012531,90503.0,90498.0,0.01104996]
[1767481046562,0.01244271,90503.0,90498.0,0.05939246]
[1767481047411,0.01244271,90503.0,90499.0,0.01104984]
[1767481047644,0.01235442,90503.0,90499.0,0.01104984]
[1767481047828,0.01235442,90503.0,90498.0,0.05939246]
[1767481048285,0.01235442,90503.0,90499.0,0.01104984]
[1767481048493,0.01235442,90503.0,90498.0,0.05939246]
[1767481049327,0.01235442,90503.0,90499.0,0.01104984]
[1767481049523,0.00827588,90503.0,90499.0,0.01104984]
[1767481049763,0.00827588,90503.0,90498.0,0.05939246]
[1767481049973,0.00827588,90503.0,90499.0,0.01104984]
[1767481052275,0.00827588,90503.0,90500.0,0.01104972]
[1767481052481,0.00827588,90503.0,90500.0,0.05655418]
[1767481053499,0.00818756,90503.0,90500.0,0.05655418]
[1767481053965,0.00818756,90503.0,90500.0,0.05626754]
[1767481054850,0.00818756,90503.0,90500.0,0.01067212]
[1767481054990,0.00818756,90503.0,90498.0,0.0662993]
[1767481054991,0.03885616,90502.0,90498.0,0.0491651]
[1767481055188,0.00818756,90503.0,90500.0,0.01104972]
[1767481056834,0.00818756,90503.0,90500.0,0.06629776]
[1767481057279,0.00818756,90503.0,90501.0,0.04559542]
[1767481059235,0.00818756,90503.0,90502.0,0.04559542]
[1767481060867,0.02383747,90509.0,90506.0,0.04559542]
[1767481061091,8.31e-05,90509.0,90506.0,0.03354559]
[1767481061447,0.01113172,90509.0,90506.0,0.03354559]
[1767481061653,0.01113172,90509.0,90502.0,0.01104947]
[1767481061853,0.01113172,90509.0,90503.0,0.01104935]
[1767481062463,0.01113172,90509.0,90502.0,0.05664489]
[1767481062864,0.01104874,90508.0,90502.0,0.05664489]
[1767481063945,0.01104874,90508.0,90502.0,0.01104947]
[1767481064144,0.01096042,90508.0,90502.0,0.01104947]
[1767481064406,0.01113172,90509.0,90502.0,0.01104947]
[1767481064706,0.01113172,90509.0,90502.0,0.05664489]
[1767481064905,0.01104874,90508.0,90502.0,0.05664489]
[1767481066967,0.01113172,90509.0,90502.0,0.05664489]
[1767481067228,0.01104339,90509.0,90502.0,0.05664489]
[1767481067430,0.01104339,90509.0,90502.0,0.01104947]
[1767481067632,0.01091334,90509.0,90502.0,0.01104947]
[1767481068033,0.01091334,90509.0,90503.0,0.01084932]
[1767481068236,0.01104874,90508.0,90502.0,0.01104947]
[1767481068412,0.03488597,90510.0,90504.0,0.01104923]
[1767481069197,0.03488597,90510.0,90503.0,0.01104935]
[1767481069566,0.03488597,90510.0,90502.0,0.05664489]
[1767481069567,0.01104862,90509.0,90502.0,0.05664489]
[1767481069706,0.03488597,90510.0,90503.0,0.01104935]
[1767481070044,0.01104862,90509.0,90502.0,0.05664489]
[1767481070185,0.03488609,90509.0,90503.0,0.01104935]
[1767481070385,0.02383747,90509.0,90503.0,0.01104935]
[1767481070589,0.03488597,90510.0,90503.0,0.01104935]
[1767481070897,0.03488597,90510.0,90503.0,0.05664477]
[1767481071286,0.03488597,90510.0,90504.0,0.01104923]
[1767481071649,0.02383747,90510.0,90504.0,0.01104923]
[1767481071872,0.03488597,90510.0,90504.0,0.01104923]
[1767481073164,0.03488597,90510.0,90504.0,0.01076259]
[1767481073384,0.02383747,90510.0,90505.0,0.01104911]
[1767481073569,0.02383747,90510.0,90504.0,0.01076259]
[1767481073970,0.02383747,90510.0,90505.0,0.05664453]
[1767481074192,0.01104838,90511.0,90505.0,0.05659757]
[1767481075303,0.02398727,90513.0,90507.0,0.01104886]
[1767481075621,0.01119793,90513.0,90511.0,0.00079897]
[1767481075823,0.01104825,90512.0,90505.0,0.05664453]
[1767481076122,0.01104825,90512.0,90506.0,0.04559542]
[1767481076670,0.0350354,90513.0,90506.0,0.04559542]
[1767481076922,0.01104825,90512.0,90506.0,0.04559542]
[1767481077382,0.01104825,90512.0,90506.0,0.05664441]
[1767481077704,0.01104825,90512.0,90506.0,0.04559542]
[1767481077905,0.01104838,90511.0,90506.0,0.04549541]
[1767481078103,0.03488572,90512.0,90506.0,0.04549541]
[1767481078307,0.01104838,90511.0,90506.0,0.04549541]
[1767481078526,0.01104825,90512.0,90506.0,0.04549541]
[1767481078734,0.01104838,90511.0,90506.0,0.04549541]
[1767481078953,0.0110485,90510.0,90506.0,0.04549541]
[1767481079151,0.01104838,90511.0,90506.0,0.04549541]
[1767481079357,0.01104825,90512.0,90506.0,0.0565444]
[1767481079665,0.01119793,90513.0,90507.0,0.01084883]
[1767481079871,0.01104825,90512.0,90506.0,0.0565444]
[1767481080433,0.0110485,90510.0,90506.0,0.04549541]
[1767481080633,0.01104838,90511.0,90506.0,0.04549541]
[1767481080907,0.01104838,90511.0,90506.0,0.0453954]
[1767481081270,0.01104825,90512.0,90506.0,0.05639743]
[1767481082093,0.06628849,90514.0,90512.0,0.000799]
[1767481082269,0.04865789,90513.0,90504.0,0.01104923]
[1767481082469,0.05970602,90513.0,90503.0,0.06629587]
[1767481082710,0.05970602,90513.0,90507.0,0.01104886]
[1767481082935,0.04865789,90513.0,90507.0,0.01104886]
[1767481083235,0.0647164,90516.0,90507.0,0.01104886]
[1767481083406,0.01104618,90529.0,90519.0,0.05523652]
[1767481083569,0.01119574,90531.0,90523.0,0.05667057]
[1767481083763,0.01119574,90531.0,90523.0,0.05647058]
[1767481083964,0.0001498,90531.0,90527.0,0.04562366]
[1767481084175,0.06627294,90535.0,90527.0,0.04544174]
[1767481084176,0.02383561,90534.0,90527.0,0.04544174]
[1767481084371,0.01104581,90532.0,90527.0,0.04544174]
[1767481086621,0.01104594,90531.0,90527.0,0.04544174]
[1767481086853,0.01104581,90532.0,90527.0,0.04544174]
[1767481087220,0.01104569,90533.0,90527.0,0.05648816]
[1767481087427,0.01104581,90532.0,90527.0,0.04544174]
[1767481087837,0.01104569,90533.0,90527.0,0.04544174]
[1767481088498,0.01104594,90531.0,90527.0,0.04544174]
[1767481088663,0.01104581,90532.0,90527.0,0.04544174]
[1767481088858,0.01104545,90535.0,90527.0,0.04544174]
[1767481089071,0.01104508,90538.0,90533.0,0.04562366]
[1767481089265,0.01104533,90536.0,90533.0,0.04523702]
[1767481090025,0.01104533,90536.0,90533.0,0.04519008]
[1767481090213,0.01104533,90536.0,90531.0,0.10059844]
[1767481090214,0.02305667,90535.0,90531.0,0.10059844]
[1767481090414,0.0110452,90537.0,90531.0,0.11164438]
[1767481090917,0.01104533,90536.0,90531.0,0.10059844]
[1767481091697,0.0110452,90537.0,90531.0,0.11164438]
[1767481091849,0.01104533,90536.0,90532.0,0.04562366]
[1767481092258,0.0110452,90537.0,90532.0,0.04562366]
[1767481092487,0.01104533,90536.0,90532.0,0.04562366]
[1767481093760,0.0110452,90537.0,90532.0,0.04562366]
[1767481093963,0.01104533,90536.0,90532.0,0.04562366]
[1767481095185,0.0110452,90537.0,90532.0,0.04562366]
[1767481095389,0.0111525,90538.0,90532.0,0.04562366]
[1767481095534,0.0111525,90538.0,90532.0,0.05666947]
[1767481095736,0.0110452,90537.0,90532.0,0.04562366]
[1767481096281,0.0111525,90538.0,90532.0,0.05666947]
[1767481096862,0.0111525,90538.0,90532.0,0.05657851]
[1767481097248,0.0110452,90537.0,90532.0,0.0455327]
[1767481098139,0.00010742,90538.0,90534.0,0.05666923]
[1767481098336,0.00010742,90538.0,90534.0,0.04562366]
[1767481098761,0.00010742,90538.0,90534.0,0.05666923]
[1767481099105,0.00010742,90538.0,90534.0,0.04562366]
[1767481099618,0.0111525,90538.0,90534.0,0.04562366]
[1767481100470,0.0111525,90538.0,90533.0,0.01104569]
[1767481100471,0.00010742,90538.0,90535.0,0.05666911]
[1767481101667,0.00010742,90538.0,90535.0,0.04562366]
[1767481102281,0.00010742,90538.0,90535.0,0.05666911]
[1767481102822,0.00010742,90538.0,90535.0,0.04562366]
[1767481103028,0.01104472,90541.0,90538.0,0.04552365]
[1767481103142,0.01104472,90541.0,90538.0,0.04452465]
[1767481103980,0.01104472,90541.0,90538.0,0.04423801]
[1767481105226,0.01104472,90541.0,90537.0,0.04562366]
[1767481105800,0.03316459,90542.0,90537.0,0.04562366]
[1767481105999,0.01104472,90541.0,90537.0,0.04562366]
[1767481106200,0.02212,90542.0,90537.0,0.05666886]
[1767481106403,0.02212,90542.0,90538.0,0.05666874]
[1767481107821,0.02212,90542.0,90539.0,0.01104496]
[1767481108018,0.02212,90542.0,90538.0,0.05666874]
[1767481109189,0.02212,90542.0,90539.0,0.010954]
[1767481109625,0.02212,90542.0,90538.0,0.05666874]
[1767481109966,0.02212,90542.0,90539.0,0.01104496]
[1767481110932,0.02212,90542.0,90538.0,0.05662326]
[1767481111632,0.02212,90542.0,90538.0,0.04557818]
[1767481111820,0.02212,90542.0,90538.0,0.05662326]
[1767481112024,0.02212,90542.0,90539.0,0.01104496]
[1767481112645,0.02212,90542.0,90538.0,0.05662326]
[1767481112846,0.02212,90542.0,90539.0,0.01104496]
[1767481113091,0.02212,90542.0,90538.0,0.04557818]
[1767481113420,0.02212,90542.0,90538.0,0.05662326]
[1767481113821,0.02212,90542.0,90539.0,0.01104496]
[1767481114098,0.02212,90542.0,90538.0,0.05662326]
[1767481114598,0.02212,90542.0,90539.0,0.01104496]
[1767481115094,0.02212,90542.0,90538.0,0.05662326]
[1767481115248,0.02212,90542.0,90538.0,0.04557818]
[1767481115963,0.02212,90542.0,90537.0,0.0110452]
[1767481116174,0.02212,90542.0,90537.0,0.01099972]
[1767481116382,0.03316459,90542.0,90536.0,0.01104533]
[1767481116602,0.03316459,90542.0,90537.0,0.0110452]
[1767481116803,0.02212,90542.0,90537.0,0.0562216]
[1767481117018,0.02212,90542.0,90537.0,0.0110452]
[1767481117223,0.02212,90542.0,90538.0,0.01104508]
[1767481117573,0.02212,90542.0,90537.0,0.0562216]
[1767481117769,0.02212,90542.0,90537.0,0.0110452]
[1767481117974,0.02212,90542.0,90538.0,0.01104508]
[1767481118241,0.02212,90542.0,90537.0,0.0110452]
[1767481118584,0.03316459,90542.0,90537.0,0.01075856]
[1767481118950,0.03316459,90542.0,90537.0,0.0451764]
[1767481119427,0.03316459,90542.0,90537.0,0.04488978]
[1767481119944,0.01104472,90541.0,90537.0,0.04488978]
[1767481120139,0.03316459,90542.0,90537.0,0.05593498]
[1767481120340,0.03316459,90542.0,90537.0,0.04460319]
[1767481121342,0.05700009,90542.0,90537.0,0.04460319]
[1767481122412,0.05700009,90542.0,90537.0,0.04431658]
[1767481123831,0.05700009,90542.0,90537.0,0.0442256]
[1767481125073,0.01104411,90546.0,90543.0,0.0451764]
[1767481125273,0.01104398,90547.0,90543.0,0.04488981]
[1767481125693,0.01104411,90546.0,90543.0,0.04488981]
[1767481126621,0.01104386,90548.0,90543.0,0.04488981]
[1767481126822,0.01104411,90546.0,90543.0,0.04488981]
[1767481127395,0.01104386,90548.0,90543.0,0.04488981]
[1767481128451,0.06641274,90549.0,90543.0,0.05593428]
[1767481128653,0.0001498,90549.0,90545.0,0.0108442]
[1767481129423,0.0001498,90549.0,90545.0,0.01055762]
[1767481129839,0.0001498,90549.0,90544.0,0.01104435]
[1767481130099,0.01119354,90549.0,90544.0,0.0451764]
[1767481130307,0.03808043,90548.0,90542.0,0.02818683]
[1767481131875,0.03808043,90548.0,90543.0,0.01104447]
[1767481132447,0.03808043,90548.0,90543.0,0.0662664]
[1767481132647,0.03808043,90548.0,90544.0,0.01104435]
[1767481132866,0.06630078,90552.0,90545.0,0.05622063]
[1767481133014,0.01104374,90549.0,90545.0,0.04488984]
[1767481133217,0.06630078,90552.0,90545.0,0.04488984]
[1767481133420,0.01104362,90550.0,90545.0,0.04488984]
[1767481133622,0.01104362,90550.0,90545.0,0.05593407]
[1767481135652,0.01104362,90550.0,90545.0,0.04488984]
[1767481136055,0.0110435,90551.0,90545.0,0.05593407]
[1767481137195,0.0110435,90551.0,90546.0,0.01075309]
[1767481137353,0.0110435,90551.0,90546.0,0.05592949]
[1767481137562,0.0348803,90551.0,90546.0,0.05592949]
[1767481138106,0.0348803,90551.0,90546.0,0.0451764]
[1767481138891,0.0348803,90551.0,90542.0,0.03923142]
[1767481138892,0.04640835,90550.0,90542.0,0.02747743]
[1767481139294,0.04640835,90550.0,90545.0,0.01104423]
[1767481139878,0.04640835,90550.0,90542.0,0.02747743]
[1767481140078,0.04640835,90550.0,90545.0,0.01104423]
[1767481140398,0.05745197,90550.0,90544.0,0.01104435]
[1767481140598,0.05745197,90550.0,90541.0,0.0552236]
[1767481140803,0.01104362,90550.0,90543.0,0.01104447]
[1767481141102,0.01104362,90550.0,90543.0,0.00517938]
[1767481141283,0.06626211,90550.0,90543.0,0.01104447]
[1767481141481,0.01104386,90548.0,90543.0,0.01104447]
[1767481141848,0.01104374,90549.0,90544.0,0.01104435]
[1767481142138,0.01104191,90564.0,90549.0,0.01]
[1767481142275,0.06625194,90564.0,90554.0,0.38033842]
[1767481142684,0.01104142,90568.0,90561.0,0.01104228]
[1767481142879,0.00050778,90567.0,90561.0,0.04607772]